[Event "Late-Titled-Tuesday-Blitz-May-07-2024"]
[Site "Chess.com"]
[Date "2024.05.07"]
[Round "1"]
[White "GothamChess"]
[Black "HanSchut"]
[Result "1-0"]
[WhiteElo "2703"]
[BlackElo "2392"]
[TimeControl "180+1"]
[EndTime "14:07:07 PDT"]
[Termination "GothamChess won by resignation"]

1. a4 {[%clk 0:02:41.1]} 1... e5 {[%clk 0:02:59]} 2. Ra3 {[%clk 0:02:41.8]} 2...
Bxa3 {[%clk 0:02:59]} 3. Nxa3 {[%clk 0:02:42.7]} 3... d5 {[%clk 0:02:59.3]} 4.
b3 {[%clk 0:02:43.4]} 4... Be6 {[%clk 0:02:59.8]} 5. Bb2 {[%clk 0:02:44.1]} 5...
f6 {[%clk 0:02:57.9]} 6. g3 {[%clk 0:02:44.1]} 6... c5 {[%clk 0:02:55.8]} 7. Bg2
{[%clk 0:02:44.5]} 7... Nc6 {[%clk 0:02:55.5]} 8. e3 {[%clk 0:02:43.5]} 8... Qd7
{[%clk 0:02:55.6]} 9. Ne2 {[%clk 0:02:43.2]} 9... Nge7 {[%clk 0:02:55.6]} 10.
O-O {[%clk 0:02:39.7]} 10... Bh3 {[%clk 0:02:53.3]} 11. f4 {[%clk 0:02:40]}
11... Bxg2 {[%clk 0:02:53]} 12. Kxg2 {[%clk 0:02:40.9]} 12... h5 {[%clk
0:02:49.2]} 13. h3 {[%clk 0:02:39.5]} 13... O-O-O {[%clk 0:02:29.4]} 14. d3
{[%clk 0:02:34.6]} 14... Ng6 {[%clk 0:02:22.2]} 15. Qe1 {[%clk 0:02:25.6]} 15...
Rde8 {[%clk 0:02:16.4]} 16. f5 {[%clk 0:02:16.2]} 16... Nge7 {[%clk 0:02:13.3]}
17. e4 {[%clk 0:02:16.9]} 17... Nd4 {[%clk 0:02:01.2]} 18. Nc1 {[%clk
0:02:05.3]} 18... dxe4 {[%clk 0:01:50.6]} 19. dxe4 {[%clk 0:02:05.4]} 19... Qc6
{[%clk 0:01:50.5]} 20. Nc4 {[%clk 0:01:44.9]} 20... Ndxf5 {[%clk 0:01:26.1]} 21.
Na5 {[%clk 0:01:39.7]} 21... Qd7 {[%clk 0:01:07.5]} 22. exf5 {[%clk 0:01:38]}
22... Nxf5 {[%clk 0:01:06]} 23. Qf2 {[%clk 0:01:16.6]} 23... Nd4 {[%clk
0:00:56.1]} 24. c3 {[%clk 0:01:03.2]} 24... Nc6 {[%clk 0:00:53.9]} 25. Qxc5
{[%clk 0:01:00.1]} 25... Rd8 {[%clk 0:00:43.3]} 26. Nxc6 {[%clk 0:00:59.8]}
26... bxc6 {[%clk 0:00:43.8]} 27. Rf2 {[%clk 0:00:56.4]} 27... Qd5+ {[%clk
0:00:43.7]} 28. Qxd5 {[%clk 0:00:56.3]} 28... cxd5 {[%clk 0:00:43.8]} 29. Nd3
{[%clk 0:00:55]} 29... Kd7 {[%clk 0:00:38.5]} 30. Nc5+ {[%clk 0:00:53]} 30...
Ke7 {[%clk 0:00:37.7]} 31. Ba3 {[%clk 0:00:52.6]} 31... Kf7 {[%clk 0:00:36]} 32.
Nd3 {[%clk 0:00:51.2]} 32... d4 {[%clk 0:00:34.7]} 33. Nxe5+ {[%clk 0:00:50.3]}
33... Ke6 {[%clk 0:00:33.7]} 34. Nc6 {[%clk 0:00:42]} 34... dxc3 {[%clk
0:00:30]} 35. Nxd8+ {[%clk 0:00:42.1]} 35... Rxd8 {[%clk 0:00:30.7]} 36. Bb4
{[%clk 0:00:42.6]} 36... Rb8 {[%clk 0:00:27.2]} 37. Bxc3 {[%clk 0:00:42]} 37...
Rxb3 {[%clk 0:00:28.1]} 38. Rc2 {[%clk 0:00:35.3]} 38... Kf5 {[%clk 0:00:23.9]}
39. a5 {[%clk 0:00:35]} 39... Ke4 {[%clk 0:00:24.1]} 40. Be1 {[%clk 0:00:29.6]}
40... Kd3 {[%clk 0:00:23.2]} 41. Rc7 {[%clk 0:00:27.7]} 41... g5 {[%clk
0:00:20.8]} 42. Rxa7 {[%clk 0:00:26]} 42... g4 {[%clk 0:00:20.7]} 43. hxg4
{[%clk 0:00:26]} 43... hxg4 {[%clk 0:00:21.6]} 44. Rf7 {[%clk 0:00:23.8]} 44...
Rb2+ {[%clk 0:00:20.4]} 45. Bf2 {[%clk 0:00:23.8]} 45... Ra2 {[%clk 0:00:17.4]}
46. Rxf6 {[%clk 0:00:24.1]} 46... Rxa5 {[%clk 0:00:18.1]} 47. Rf4 {[%clk
0:00:23.8]} 1-0

[Event "Late-Titled-Tuesday-Blitz-May-07-2024"]
[Site "Chess.com"]
[Date "2024.05.07"]
[Round "1"]
[White "Dzidzik2203"]
[Black "carokannlover213"]
[Result "1-0"]
[WhiteElo "2439"]
[BlackElo "2717"]
[TimeControl "180+1"]
[EndTime "14:07:08 PDT"]
[Termination "Dzidzik2203 won by resignation"]

1. b3 {[%clk 0:02:56.2]} 1... d5 {[%clk 0:02:58.5]} 2. Bb2 {[%clk 0:02:54.6]}
2... Nf6 {[%clk 0:02:55.1]} 3. Nf3 {[%clk 0:02:54.7]} 3... e6 {[%clk 0:02:51.7]}
4. e3 {[%clk 0:02:54.1]} 4... Bd6 {[%clk 0:02:52.1]} 5. c4 {[%clk 0:02:54.4]}
5... O-O {[%clk 0:02:52.3]} 6. Nc3 {[%clk 0:02:54.6]} 6... Re8 {[%clk
0:02:52.1]} 7. g4 {[%clk 0:02:54.8]} 7... Ne4 {[%clk 0:02:42.8]} 8. Qc2 {[%clk
0:02:52.1]} 8... Nxc3 {[%clk 0:02:28.1]} 9. Qxc3 {[%clk 0:02:46]} 9... e5 {[%clk
0:02:27.8]} 10. cxd5 {[%clk 0:02:37.8]} 10... Bxg4 {[%clk 0:02:26.2]} 11. e4
{[%clk 0:02:38.2]} 11... Qf6 {[%clk 0:02:23.9]} 12. Be2 {[%clk 0:02:34]} 12...
Nd7 {[%clk 0:02:23.1]} 13. Rg1 {[%clk 0:02:24.2]} 13... Bh5 {[%clk 0:02:19.3]}
14. O-O-O {[%clk 0:02:14.7]} 14... c6 {[%clk 0:02:10.7]} 15. dxc6 {[%clk
0:01:39.4]} 15... Rac8 {[%clk 0:02:09.5]} 16. Kb1 {[%clk 0:01:16.4]} 16... Rxc6
{[%clk 0:02:08]} 17. Qe3 {[%clk 0:01:17]} 17... Bg6 {[%clk 0:01:16.9]} 18. Bb5
{[%clk 0:00:57]} 18... Bc5 {[%clk 0:01:02.4]} 19. Qe2 {[%clk 0:00:35.6]} 19...
Rd6 {[%clk 0:00:55.1]} 20. d3 {[%clk 0:00:33.1]} 20... a6 {[%clk 0:00:48.1]} 21.
Bxd7 {[%clk 0:00:32.4]} 21... Rxd7 {[%clk 0:00:49]} 22. Rg5 {[%clk 0:00:28]}
22... Bd6 {[%clk 0:00:41.4]} 23. h4 {[%clk 0:00:23.7]} 23... h6 {[%clk
0:00:38.8]} 24. Rg3 {[%clk 0:00:22.7]} 24... Kh7 {[%clk 0:00:34.3]} 25. Qe3
{[%clk 0:00:21.7]} 25... Bh5 {[%clk 0:00:29.1]} 26. Rdg1 {[%clk 0:00:21.1]}
26... Rg8 {[%clk 0:00:24.5]} 27. d4 {[%clk 0:00:20.3]} 27... exd4 {[%clk
0:00:22.4]} 28. Bxd4 {[%clk 0:00:20.6]} 28... Bc5 {[%clk 0:00:05.3]} 29. Bxf6
{[%clk 0:00:18.5]} 29... Bxe3 {[%clk 0:00:02.9]} 30. Rxg7+ {[%clk 0:00:18.7]}
30... Rxg7 {[%clk 0:00:03.5]} 31. Rxg7+ {[%clk 0:00:18.8]} 31... Kh8 {[%clk
0:00:04]} 32. Rxf7+ {[%clk 0:00:16.6]} 32... Kg8 {[%clk 0:00:03.9]} 33. Rxd7
{[%clk 0:00:17.1]} 1-0

[Event "Late-Titled-Tuesday-Blitz-May-07-2024"]
[Site "Chess.com"]
[Date "2024.05.07"]
[Round "1"]
[White "Genghis_K"]
[Black "Ykow"]
[Result "1/2-1/2"]
[WhiteElo "2954"]
[BlackElo "2544"]
[TimeControl "180+1"]
[EndTime "14:07:11 PDT"]
[Termination "Game drawn by repetition"]

1. e4 {[%clk 0:02:51.9]} 1... e5 {[%clk 0:02:59.8]} 2. Nf3 {[%clk 0:02:51.8]}
2... Nc6 {[%clk 0:02:59.9]} 3. d4 {[%clk 0:02:52.4]} 3... exd4 {[%clk
0:02:58.4]} 4. Nxd4 {[%clk 0:02:53.3]} 4... Nf6 {[%clk 0:02:59.3]} 5. Nxc6
{[%clk 0:02:53.1]} 5... bxc6 {[%clk 0:02:59.8]} 6. Bd3 {[%clk 0:02:53.9]} 6...
d5 {[%clk 0:02:59.1]} 7. exd5 {[%clk 0:02:54.8]} 7... cxd5 {[%clk 0:02:59.4]} 8.
O-O {[%clk 0:02:55.5]} 8... Be7 {[%clk 0:02:57]} 9. c4 {[%clk 0:02:55.9]} 9...
c6 {[%clk 0:02:56.8]} 10. Nc3 {[%clk 0:02:55.4]} 10... O-O {[%clk 0:02:56.5]}
11. cxd5 {[%clk 0:02:55.3]} 11... cxd5 {[%clk 0:02:56.7]} 12. Be3 {[%clk
0:02:55.3]} 12... h6 {[%clk 0:02:56.1]} 13. Bd4 {[%clk 0:02:52.1]} 13... Be6
{[%clk 0:02:56.6]} 14. Re1 {[%clk 0:02:51.2]} 14... Qa5 {[%clk 0:02:51.9]} 15.
Bc2 {[%clk 0:02:49.3]} 15... Rfc8 {[%clk 0:02:45.6]} 16. Qd3 {[%clk 0:02:49]}
16... Rab8 {[%clk 0:02:44.1]} 17. Rab1 {[%clk 0:02:15.6]} 17... Kf8 {[%clk
0:02:30.2]} 18. Bb3 {[%clk 0:02:10.4]} 18... Rb4 {[%clk 0:02:25.6]} 19. Bxf6
{[%clk 0:02:01.4]} 19... Bxf6 {[%clk 0:02:25.3]} 20. Qh7 {[%clk 0:02:01.8]}
20... Rd8 {[%clk 0:01:51.1]} 21. Rbd1 {[%clk 0:01:46.2]} 21... Rd4 {[%clk
0:01:51]} 22. Rc1 {[%clk 0:01:17.7]} 22... Rd2 {[%clk 0:01:48.6]} 23. Ne2 {[%clk
0:01:13.1]} 23... Qb6 {[%clk 0:01:25.7]} 24. Rc2 {[%clk 0:01:04.8]} 24... Rxc2
{[%clk 0:01:23.8]} 25. Qxc2 {[%clk 0:01:05.7]} 25... Rc8 {[%clk 0:01:20.1]} 26.
Qd2 {[%clk 0:01:04.1]} 26... Bg5 {[%clk 0:01:16.3]} 27. Qd1 {[%clk 0:01:03.3]}
27... Rc5 {[%clk 0:01:08.3]} 28. h3 {[%clk 0:00:59.6]} 28... a5 {[%clk
0:01:06.3]} 29. Nd4 {[%clk 0:00:52.4]} 29... Rc1 {[%clk 0:01:06.1]} 30. Nxe6+
{[%clk 0:00:52.4]} 30... Qxe6 {[%clk 0:00:46.5]} 31. Rxe6 {[%clk 0:00:44.9]}
31... Rxd1+ {[%clk 0:00:46.3]} 32. Bxd1 {[%clk 0:00:45.2]} 32... fxe6 {[%clk
0:00:47.2]} 33. a3 {[%clk 0:00:42.8]} 33... Bc1 {[%clk 0:00:47]} 34. b4 {[%clk
0:00:43.3]} 34... axb4 {[%clk 0:00:44.5]} 35. axb4 {[%clk 0:00:44.2]} 35... Ba3
{[%clk 0:00:44.9]} 36. b5 {[%clk 0:00:44.3]} 36... Bc5 {[%clk 0:00:45.8]} 37.
Kf1 {[%clk 0:00:44.4]} 37... Ke7 {[%clk 0:00:45.9]} 38. Bg4 {[%clk 0:00:42.2]}
38... e5 {[%clk 0:00:42.7]} 39. Ke2 {[%clk 0:00:42.1]} 39... Kd6 {[%clk
0:00:42.6]} 40. Bh5 {[%clk 0:00:40.3]} 40... e4 {[%clk 0:00:42.4]} 41. f3 {[%clk
0:00:40.2]} 41... Ke5 {[%clk 0:00:42.7]} 42. fxe4 {[%clk 0:00:40.3]} 42... dxe4
{[%clk 0:00:42.9]} 43. Be8 {[%clk 0:00:39.5]} 43... Kf4 {[%clk 0:00:41.7]} 44.
Bc6 {[%clk 0:00:38.9]} 44... h5 {[%clk 0:00:40.3]} 45. Kd2 {[%clk 0:00:38.8]}
45... h4 {[%clk 0:00:39.3]} 46. Kc3 {[%clk 0:00:34.9]} 46... Bb6 {[%clk
0:00:37.1]} 47. Kd2 {[%clk 0:00:30.3]} 47... e3+ {[%clk 0:00:36.1]} 48. Ke2
{[%clk 0:00:30.7]} 48... Kg3 {[%clk 0:00:36.5]} 49. Bf3 {[%clk 0:00:30.4]} 49...
g5 {[%clk 0:00:36.6]} 50. Bd5 {[%clk 0:00:29.7]} 50... g4 {[%clk 0:00:35.1]} 51.
hxg4 {[%clk 0:00:30.1]} 51... Kxg4 {[%clk 0:00:36]} 52. Bc6 {[%clk 0:00:30.4]}
52... Kg3 {[%clk 0:00:36.2]} 53. Bd5 {[%clk 0:00:30.7]} 53... Kf4 {[%clk
0:00:36.5]} 54. Bc6 {[%clk 0:00:30.8]} 54... Kg3 {[%clk 0:00:36.9]} 55. Bd5
{[%clk 0:00:31.3]} 55... Kf4 {[%clk 0:00:37.2]} 56. Bc6 {[%clk 0:00:31.9]} 56...
Kg3 {[%clk 0:00:37.5]} 1/2-1/2

[Event "Late-Titled-Tuesday-Blitz-May-07-2024"]
[Site "Chess.com"]
[Date "2024.05.07"]
[Round "1"]
[White "Perecke"]
[Black "dianamirza"]
[Result "0-1"]
[WhiteElo "2547"]
[BlackElo "1942"]
[TimeControl "180+1"]
[EndTime "14:07:15 PDT"]
[Termination "dianamirza won by resignation"]

1. e4 {[%clk 0:02:59.7]} 1... c5 {[%clk 0:02:44.5]} 2. Nf3 {[%clk 0:02:58.9]}
2... e6 {[%clk 0:02:42.5]} 3. d4 {[%clk 0:02:59]} 3... cxd4 {[%clk 0:02:43.4]}
4. Nxd4 {[%clk 0:02:59.8]} 4... a6 {[%clk 0:02:44]} 5. Bd3 {[%clk 0:02:59.3]}
5... Qc7 {[%clk 0:02:43.3]} 6. O-O {[%clk 0:02:58.1]} 6... Nf6 {[%clk 0:02:44]}
7. Qe2 {[%clk 0:02:57.9]} 7... Nc6 {[%clk 0:02:36.5]} 8. Nxc6 {[%clk 0:02:57.8]}
8... dxc6 {[%clk 0:02:28.1]} 9. e5 {[%clk 0:02:58.7]} 9... Nd7 {[%clk
0:02:25.1]} 10. f4 {[%clk 0:02:54.7]} 10... Be7 {[%clk 0:02:24.5]} 11. Nc3
{[%clk 0:02:53.9]} 11... Nc5 {[%clk 0:02:23.9]} 12. Be3 {[%clk 0:02:48.9]} 12...
Nxd3 {[%clk 0:02:23.5]} 13. cxd3 {[%clk 0:02:49.8]} 13... Bd7 {[%clk 0:02:19.3]}
14. Ne4 {[%clk 0:02:49.6]} 14... b6 {[%clk 0:02:16.4]} 15. Qg4 {[%clk
0:02:49.4]} 15... O-O-O {[%clk 0:02:08.5]} 16. Rfc1 {[%clk 0:02:45.1]} 16... f5
{[%clk 0:02:07.7]} 17. exf6 {[%clk 0:02:42.6]} 17... gxf6 {[%clk 0:02:07.9]} 18.
Qf3 {[%clk 0:02:37.9]} 18... Rhg8 {[%clk 0:01:56.7]} 19. a4 {[%clk 0:02:37.4]}
19... Rg7 {[%clk 0:01:37]} 20. a5 {[%clk 0:02:37]} 20... bxa5 {[%clk 0:01:30]}
21. Nc5 {[%clk 0:02:36.6]} 21... Bxc5 {[%clk 0:01:26.3]} 22. Bxc5 {[%clk
0:02:37.5]} 22... Rdg8 {[%clk 0:01:24.2]} 23. g3 {[%clk 0:02:36.7]} 23... h5
{[%clk 0:01:19.8]} 24. b4 {[%clk 0:02:30.6]} 24... h4 {[%clk 0:01:19.7]} 25. Bf2
{[%clk 0:02:25.5]} 25... hxg3 {[%clk 0:01:19.5]} 26. hxg3 {[%clk 0:02:26.4]}
26... e5 {[%clk 0:01:13.7]} 27. fxe5 {[%clk 0:02:18.3]} 27... fxe5 {[%clk
0:01:13.4]} 28. Kg2 {[%clk 0:01:56.4]} 28... axb4 {[%clk 0:00:35.3]} 29. Rxa6
{[%clk 0:01:54.8]} 29... Qb7 {[%clk 0:00:23.5]} 30. Raxc6+ {[%clk 0:01:51.8]}
30... Bxc6 {[%clk 0:00:23]} 31. Rxc6+ {[%clk 0:01:52.6]} 31... Rc7 {[%clk
0:00:21]} 32. Qf5+ {[%clk 0:01:52.9]} 32... Kb8 {[%clk 0:00:19.8]} 33. Qxe5
{[%clk 0:01:22.6]} 33... Qxc6+ {[%clk 0:00:20.1]} 34. Kg1 {[%clk 0:01:22.2]}
34... Qc1+ {[%clk 0:00:19.3]} 35. Kg2 {[%clk 0:01:22.3]} 35... Qc6+ {[%clk
0:00:15.8]} 36. Kg1 {[%clk 0:01:21.1]} 36... Kb7 {[%clk 0:00:15.6]} 37. Qd4
{[%clk 0:01:17.1]} 37... Kc8 {[%clk 0:00:13.6]} 38. Qxb4 {[%clk 0:01:13.3]}
38... Rh8 {[%clk 0:00:12.4]} 39. Qg4+ {[%clk 0:01:09.7]} 39... Kb7 {[%clk
0:00:12.1]} 40. Qb4+ {[%clk 0:01:09.4]} 40... Kc8 {[%clk 0:00:11.1]} 41. Qg4+
{[%clk 0:01:09.3]} 41... Rd7 {[%clk 0:00:11.2]} 42. Kf1 {[%clk 0:01:05.7]} 42...
Rh1+ {[%clk 0:00:10.2]} 43. Ke2 {[%clk 0:01:05.6]} 43... Qc2+ {[%clk 0:00:07.8]}
44. Ke3 {[%clk 0:01:03.5]} 44... Qxd3+ {[%clk 0:00:08.1]} 45. Kf4 {[%clk
0:01:02.8]} 45... Qc4+ {[%clk 0:00:07.5]} 46. Kf3 {[%clk 0:01:00.2]} 46... Qxg4+
{[%clk 0:00:03.2]} 47. Kxg4 {[%clk 0:01:01.1]} 47... Rg7+ {[%clk 0:00:03.5]} 48.
Kf3 {[%clk 0:01:00.3]} 48... Rh6 {[%clk 0:00:03.1]} 49. Bd4 {[%clk 0:00:58.8]}
49... Rf7+ {[%clk 0:00:03.3]} 50. Kg4 {[%clk 0:00:57.9]} 50... Rg6+ {[%clk
0:00:04]} 51. Kh4 {[%clk 0:00:58]} 51... Kd7 {[%clk 0:00:03.5]} 52. g4 {[%clk
0:00:57.5]} 52... Rf4 {[%clk 0:00:03.4]} 53. Be3 {[%clk 0:00:55.6]} 53... Rfxg4+
{[%clk 0:00:03.7]} 54. Kh5 {[%clk 0:00:56.2]} 54... Ke6 {[%clk 0:00:03.9]} 0-1

[Event "Late-Titled-Tuesday-Blitz-May-07-2024"]
[Site "Chess.com"]
[Date "2024.05.07"]
[Round "1"]
[White "KuzubovYuriy"]
[Black "Romadk"]
[Result "1-0"]
[WhiteElo "2951"]
[BlackElo "2533"]
[TimeControl "180+1"]
[EndTime "14:07:18 PDT"]
[Termination "KuzubovYuriy won on time"]

1. d4 {[%clk 0:03:00.9]} 1... Nf6 {[%clk 0:02:59.8]} 2. c4 {[%clk 0:03:00.5]}
2... e6 {[%clk 0:03:00.1]} 3. Nf3 {[%clk 0:03:00.2]} 3... d5 {[%clk 0:02:59.9]}
4. Nc3 {[%clk 0:03:00.1]} 4... Bb4 {[%clk 0:02:59.5]} 5. Bg5 {[%clk 0:02:59.7]}
5... h6 {[%clk 0:02:57.3]} 6. Bxf6 {[%clk 0:02:59.7]} 6... Qxf6 {[%clk
0:02:58.2]} 7. e3 {[%clk 0:03:00.4]} 7... O-O {[%clk 0:02:53]} 8. Rc1 {[%clk
0:03:00.1]} 8... c6 {[%clk 0:02:50.5]} 9. Qb3 {[%clk 0:02:56.4]} 9... Bd6 {[%clk
0:02:46.9]} 10. Be2 {[%clk 0:02:46.3]} 10... Nd7 {[%clk 0:02:46.7]} 11. O-O
{[%clk 0:02:42]} 11... dxc4 {[%clk 0:02:46.5]} 12. Bxc4 {[%clk 0:02:38.9]} 12...
e5 {[%clk 0:02:46.3]} 13. Ne4 {[%clk 0:02:28.4]} 13... Qe7 {[%clk 0:02:43.4]}
14. d5 {[%clk 0:02:23.1]} 14... cxd5 {[%clk 0:02:32.8]} 15. Bxd5 {[%clk
0:02:21.9]} 15... Nb6 {[%clk 0:02:30.8]} 16. Rfd1 {[%clk 0:01:54.5]} 16... Bb8
{[%clk 0:02:19]} 17. h3 {[%clk 0:01:37.9]} 17... Nxd5 {[%clk 0:02:11.6]} 18.
Qxd5 {[%clk 0:01:37.1]} 18... Be6 {[%clk 0:02:10.8]} 19. Qc5 {[%clk 0:01:37.1]}
19... Qxc5 {[%clk 0:01:42.6]} 20. Nxc5 {[%clk 0:01:36.7]} 20... Bxa2 {[%clk
0:01:43.1]} 21. Nxb7 {[%clk 0:01:24.5]} 21... e4 {[%clk 0:01:32.1]} 22. Nd4
{[%clk 0:01:23.1]} 22... Be5 {[%clk 0:01:24.2]} 23. Rc5 {[%clk 0:01:10.8]} 23...
Bf6 {[%clk 0:01:12.6]} 24. Ra5 {[%clk 0:00:50.9]} 24... Bxd4 {[%clk 0:01:10.5]}
25. Rxd4 {[%clk 0:00:50.3]} 25... Be6 {[%clk 0:00:57.7]} 26. Nc5 {[%clk
0:00:48.1]} 26... Rab8 {[%clk 0:00:50.3]} 27. b4 {[%clk 0:00:32.7]} 27... Bf5
{[%clk 0:00:21.1]} 28. g4 {[%clk 0:00:31.7]} 28... Bg6 {[%clk 0:00:20.2]} 29.
Nd7 {[%clk 0:00:30.6]} 29... Rfd8 {[%clk 0:00:14.3]} 30. Nxb8 {[%clk 0:00:30.4]}
30... Rxb8 {[%clk 0:00:15.2]} 31. Rxa7 {[%clk 0:00:30.3]} 31... h5 {[%clk
0:00:09.4]} 32. Kg2 {[%clk 0:00:29.2]} 32... hxg4 {[%clk 0:00:09.2]} 33. hxg4
{[%clk 0:00:30.1]} 33... Rb5 {[%clk 0:00:07.8]} 34. Ra1 {[%clk 0:00:21.9]} 34...
f5 {[%clk 0:00:06.2]} 35. Rd8+ {[%clk 0:00:20.4]} 35... Kf7 {[%clk 0:00:05.6]}
36. Rd7+ {[%clk 0:00:20.8]} 36... Kf6 {[%clk 0:00:05.5]} 37. Ra6+ {[%clk
0:00:20.6]} 37... Kg5 {[%clk 0:00:05.8]} 38. Rxg7 {[%clk 0:00:20.7]} 38... Kh4
{[%clk 0:00:02]} 39. Raxg6 {[%clk 0:00:19.1]} 39... f4 {[%clk 0:00:01.8]} 40.
Rh7+ {[%clk 0:00:19.1]} 1-0

[Event "Late-Titled-Tuesday-Blitz-May-07-2024"]
[Site "Chess.com"]
[Date "2024.05.07"]
[Round "1"]
[White "albayo"]
[Black "Arek_pacitan"]
[Result "1-0"]
[WhiteElo "2431"]
[BlackElo "2715"]
[TimeControl "180+1"]
[EndTime "14:07:23 PDT"]
[Termination "albayo won by resignation"]

1. e4 {[%clk 0:02:55.9]} 1... e5 {[%clk 0:02:59.8]} 2. Nf3 {[%clk 0:02:56.1]}
2... Nc6 {[%clk 0:03:00.4]} 3. Bc4 {[%clk 0:02:56.5]} 3... Nf6 {[%clk
0:02:59.3]} 4. d3 {[%clk 0:02:56.9]} 4... Bc5 {[%clk 0:02:57.7]} 5. c3 {[%clk
0:02:57.2]} 5... d6 {[%clk 0:02:57.8]} 6. Nbd2 {[%clk 0:02:56.9]} 6... a6 {[%clk
0:02:57.6]} 7. Bb3 {[%clk 0:02:56.9]} 7... O-O {[%clk 0:02:57.5]} 8. O-O {[%clk
0:02:55.7]} 8... h6 {[%clk 0:02:57.9]} 9. Re1 {[%clk 0:02:56.1]} 9... Re8 {[%clk
0:02:57.9]} 10. Nf1 {[%clk 0:02:56.2]} 10... Be6 {[%clk 0:02:57.1]} 11. Ng3
{[%clk 0:02:56]} 11... Ba7 {[%clk 0:02:53.5]} 12. h3 {[%clk 0:02:53.8]} 12...
Qd7 {[%clk 0:02:51.9]} 13. Be3 {[%clk 0:02:53.4]} 13... Bxe3 {[%clk 0:02:47.6]}
14. Rxe3 {[%clk 0:02:53.1]} 14... Ne7 {[%clk 0:02:44.7]} 15. d4 {[%clk
0:02:53.2]} 15... Bxb3 {[%clk 0:02:38.9]} 16. Qxb3 {[%clk 0:02:47.8]} 16... Ng6
{[%clk 0:02:38.6]} 17. Rd1 {[%clk 0:02:43.8]} 17... Qc8 {[%clk 0:02:36.9]} 18.
Ree1 {[%clk 0:02:42.2]} 18... Nf4 {[%clk 0:02:35.6]} 19. dxe5 {[%clk 0:02:38]}
19... dxe5 {[%clk 0:02:35.3]} 20. Nf5 {[%clk 0:02:33.6]} 20... Re6 {[%clk
0:02:34.6]} 21. Ne3 {[%clk 0:02:30.1]} 21... N6h5 {[%clk 0:02:26.5]} 22. Nd5
{[%clk 0:02:29.5]} 22... Rb8 {[%clk 0:01:50.1]} 23. Kh2 {[%clk 0:02:21.2]} 23...
c6 {[%clk 0:01:46.3]} 24. Nb6 {[%clk 0:02:17.7]} 24... Qe8 {[%clk 0:01:43.7]}
25. Nd7 {[%clk 0:02:16.9]} 25... Rd8 {[%clk 0:01:41.8]} 26. Nc5 {[%clk
0:02:14.1]} 26... Rg6 {[%clk 0:01:37.3]} 27. g4 {[%clk 0:02:11.6]} 27... Rxd1
{[%clk 0:01:11.1]} 28. Rxd1 {[%clk 0:02:08.5]} 28... Qe7 {[%clk 0:01:05.6]} 29.
Qb6 {[%clk 0:01:54.5]} 29... Kh7 {[%clk 0:00:54]} 30. Rd7 {[%clk 0:01:48.3]}
30... Qf6 {[%clk 0:00:44.6]} 31. Qxb7 {[%clk 0:01:37.7]} 31... Ne6 {[%clk
0:00:35.6]} 32. Nxe6 {[%clk 0:01:28.7]} 32... Qxf3 {[%clk 0:00:35.1]} 33. Rxf7
{[%clk 0:01:08.3]} 33... Qxe4 {[%clk 0:00:18.1]} 34. Nf8+ {[%clk 0:00:53.5]}
34... Kg8 {[%clk 0:00:18.2]} 35. Nxg6 {[%clk 0:00:53.2]} 35... Qxg6 {[%clk
0:00:18.8]} 36. gxh5 {[%clk 0:00:50.1]} 36... Qxf7 {[%clk 0:00:19.1]} 37. Qxf7+
{[%clk 0:00:32.8]} 37... Kxf7 {[%clk 0:00:20]} 38. Kg3 {[%clk 0:00:32.7]} 38...
Kf6 {[%clk 0:00:20.5]} 39. f4 {[%clk 0:00:30.7]} 39... e4 {[%clk 0:00:20]} 40.
b4 {[%clk 0:00:29.6]} 40... Ke6 {[%clk 0:00:19.8]} 41. c4 {[%clk 0:00:29.6]}
41... Kf5 {[%clk 0:00:17.6]} 42. a4 {[%clk 0:00:29.2]} 42... Ke6 {[%clk
0:00:17.8]} 43. Kf2 {[%clk 0:00:29.4]} 43... Kf6 {[%clk 0:00:17.3]} 44. Ke3
{[%clk 0:00:29.3]} 44... Kf5 {[%clk 0:00:18.2]} 45. b5 {[%clk 0:00:29.3]} 45...
cxb5 {[%clk 0:00:18.8]} 46. cxb5 {[%clk 0:00:29.7]} 46... axb5 {[%clk
0:00:19.7]} 47. axb5 {[%clk 0:00:30.3]} 47... Ke6 {[%clk 0:00:20.6]} 48. Kxe4
{[%clk 0:00:30.6]} 1-0

[Event "Late-Titled-Tuesday-Blitz-May-07-2024"]
[Site "Chess.com"]
[Date "2024.05.07"]
[Round "1"]
[White "Der_Balak_3Halak"]
[Black "MrKGG1"]
[Result "0-1"]
[WhiteElo "2399"]
[BlackElo "2704"]
[TimeControl "180+1"]
[EndTime "14:07:26 PDT"]
[Termination "MrKGG1 won by resignation"]

1. e4 {[%clk 0:03:00.3]} 1... c5 {[%clk 0:02:58.9]} 2. Nf3 {[%clk 0:03:00]} 2...
d6 {[%clk 0:02:59.2]} 3. Bb5+ {[%clk 0:03:00.2]} 3... Nd7 {[%clk 0:02:58.2]} 4.
O-O {[%clk 0:02:59.9]} 4... a6 {[%clk 0:02:55.5]} 5. Bxd7+ {[%clk 0:03:00.3]}
5... Bxd7 {[%clk 0:02:54.6]} 6. Re1 {[%clk 0:03:00.9]} 6... e6 {[%clk
0:02:48.7]} 7. c3 {[%clk 0:03:01.8]} 7... g6 {[%clk 0:02:39.8]} 8. d4 {[%clk
0:03:01.9]} 8... cxd4 {[%clk 0:02:38.1]} 9. cxd4 {[%clk 0:03:02.8]} 9... Bg7
{[%clk 0:02:36.6]} 10. Bg5 {[%clk 0:03:01.9]} 10... Ne7 {[%clk 0:02:29.1]} 11.
Nc3 {[%clk 0:02:56]} 11... h6 {[%clk 0:02:22.5]} 12. Bf4 {[%clk 0:02:51.6]}
12... Nc8 {[%clk 0:02:16.6]} 13. e5 {[%clk 0:02:49.8]} 13... d5 {[%clk
0:02:14.9]} 14. Rc1 {[%clk 0:02:24.2]} 14... Ne7 {[%clk 0:02:12.7]} 15. Na4
{[%clk 0:02:18.6]} 15... Bxa4 {[%clk 0:02:09.1]} 16. Qxa4+ {[%clk 0:02:19.5]}
16... Qd7 {[%clk 0:02:09.4]} 17. Qa3 {[%clk 0:02:10.7]} 17... O-O {[%clk
0:02:02.3]} 18. Rc2 {[%clk 0:02:03.4]} 18... Rfc8 {[%clk 0:01:52.8]} 19. Rec1
{[%clk 0:02:03]} 19... Rxc2 {[%clk 0:01:52.8]} 20. Rxc2 {[%clk 0:02:03.9]} 20...
Nc6 {[%clk 0:01:52.5]} 21. Bd2 {[%clk 0:01:55.8]} 21... Kh7 {[%clk 0:01:42]} 22.
h4 {[%clk 0:01:55.4]} 22... Rc8 {[%clk 0:01:39.7]} 23. Qd3 {[%clk 0:01:35.3]}
23... h5 {[%clk 0:01:22.3]} 24. Ng5+ {[%clk 0:01:31.2]} 24... Kg8 {[%clk
0:01:22.4]} 25. Bc3 {[%clk 0:01:31.6]} 25... Bh6 {[%clk 0:01:20.1]} 26. Re2
{[%clk 0:01:26.8]} 26... Ne7 {[%clk 0:01:18]} 27. g3 {[%clk 0:01:13.5]} 27...
Bxg5 {[%clk 0:01:12.3]} 28. hxg5 {[%clk 0:01:13]} 28... Nf5 {[%clk 0:01:12.5]}
29. Rc2 {[%clk 0:01:06.3]} 29... Qa4 {[%clk 0:01:10]} 30. b3 {[%clk 0:01:04.6]}
30... Qb5 {[%clk 0:01:09.3]} 31. Qd2 {[%clk 0:00:51.7]} 31... Qd7 {[%clk
0:01:05.4]} 32. Kg2 {[%clk 0:00:47.5]} 32... Qe7 {[%clk 0:01:02.7]} 33. a4
{[%clk 0:00:37.3]} 33... Rc6 {[%clk 0:01:01.5]} 34. f4 {[%clk 0:00:35]} 34...
Qc7 {[%clk 0:00:56.2]} 35. Qd3 {[%clk 0:00:26.4]} 35... b5 {[%clk 0:00:48.6]}
36. axb5 {[%clk 0:00:25.7]} 36... axb5 {[%clk 0:00:49.5]} 37. b4 {[%clk
0:00:20.3]} 37... Rc4 {[%clk 0:00:42.8]} 38. Kf3 {[%clk 0:00:12.9]} 38... Rxd4
{[%clk 0:00:16.3]} 39. Bxd4 {[%clk 0:00:13.8]} 39... Qxc2 {[%clk 0:00:16.4]} 40.
Qc3 {[%clk 0:00:14.4]} 40... Qd1+ {[%clk 0:00:14.7]} 41. Kf2 {[%clk 0:00:12]}
41... Qxd4+ {[%clk 0:00:14.8]} 42. Qxd4 {[%clk 0:00:11.8]} 42... Nxd4 {[%clk
0:00:15.7]} 0-1